[Event "Titled Tuesday Blitz June 6 Early 2023"]
[White "Ibadov, Dashgyn"]
[Black "Herman, Daniel"]
[WhiteFideId "24107514"]
[BlackFideId "30935008"]
[WhiteElo "2208"]
[BlackElo "1897"]
[Result "1-0"]
[Round "6"]
[TimeControl "180+2"]
[Date "2023.06.06"]
[WhiteClock "0:01:25"]
[BlackClock "0:00:02"]
[Board "105"]

1. d4 {[%clk 0:03:00]}  Nf6 {[%clk 0:03:00]} 2. Nf3 {[%clk 0:03:00]}  g6 {[%clk 0:03:00]} 3. Bf4 {[%clk 0:03:01]}  Bg7 {[%clk 0:03:00]} 4. Nc3 {[%clk 0:03:01]}  d5 {[%clk 0:02:59]} 5. Nb5 {[%clk 0:03:01]}  Na6 {[%clk 0:02:58]} 6. e3 {[%clk 0:03:02]}  O-O {[%clk 0:02:45]} 7. h3 {[%clk 0:03:02]}  c6 {[%clk 0:02:35]} 8. Nc3 {[%clk 0:03:01]}  c5 {[%clk 0:02:34]} 9. Bxa6 {[%clk 0:02:59]}  bxa6 {[%clk 0:02:35]} 10. Be5 {[%clk 0:02:53]}  cxd4 {[%clk 0:02:29]} 11. Qxd4 {[%clk 0:02:51]}  Qb6 {[%clk 0:02:17]} 12. O-O {[%clk 0:02:50]}  Qxb2 {[%clk 0:02:07]} 13. Nxd5 {[%clk 0:02:50]}  Qxd4 {[%clk 0:01:51]} 14. Nxe7+ {[%clk 0:02:49]}  Kh8 {[%clk 0:01:52]} 15. Nxd4 {[%clk 0:02:49]}  Re8 {[%clk 0:01:42]} 16. Nxc8 {[%clk 0:02:33]}  Raxc8 {[%clk 0:01:43]} 17. f4 {[%clk 0:02:33]}  Nd5 {[%clk 0:01:39]} 18. e4 {[%clk 0:02:31]}  Ne3 {[%clk 0:01:09]} 19. Rf2 {[%clk 0:02:22]}  Bxe5 {[%clk 0:00:59]} 20. fxe5 {[%clk 0:02:22]}  Rxe5 {[%clk 0:01:00]} 21. Re1 {[%clk 0:02:12]}  Rxe4 {[%clk 0:00:56]} 22. Rxf7 {[%clk 0:02:11]}  Rd8 {[%clk 0:00:19]} 23. Nf3 {[%clk 0:02:06]}  Rd1 {[%clk 0:00:12]} 24. Rxd1 {[%clk 0:02:01]}  Nxd1 {[%clk 0:00:13]} 25. Rxh7+ {[%clk 0:01:46]}  Kg8 {[%clk 0:00:10]} 26. Rxa7 {[%clk 0:01:47]}  Re2 {[%clk 0:00:08]} 27. Rxa6 {[%clk 0:01:42]}  Rxc2 {[%clk 0:00:04]} 28. Rxg6+ {[%clk 0:01:41]}  Kf7 {[%clk 0:00:04]} 29. Ne5+ {[%clk 0:01:36]}  Ke7 {[%clk 0:00:04]} 30. a4 {[%clk 0:01:35]}  Ra2 {[%clk 0:00:04]} 31. a5 {[%clk 0:01:30]}  Ne3 {[%clk 0:00:02]} 32. a6 {[%clk 0:01:25]} 1-0


[Site "https://www.chess.com"]

[Event "Titled Tuesday Blitz June 6 Early 2023"]
[White "Avazkhonov, Alikhon"]
[Black "Goroshkov, Maksym"]
[WhiteFideId "14208504"]
[BlackFideId "14142716"]
[WhiteElo "1739"]
[BlackElo "2322"]
[Result "0-1"]
[Round "6"]
[TimeControl "180+2"]
[Date "2023.06.06"]
[WhiteClock "0:00:04"]
[BlackClock "0:01:37"]
[Board "110"]

1. d4 {[%clk 0:03:00]}  Nf6 {[%clk 0:02:59]} 2. c4 {[%clk 0:02:59]}  e5 {[%clk 0:02:59]} 3. Nc3 {[%clk 0:03:00]}  exd4 {[%clk 0:02:59]} 4. Qxd4 {[%clk 0:03:01]}  Nc6 {[%clk 0:02:59]} 5. Qh4 {[%clk 0:03:01]}  Be7 {[%clk 0:02:59]} 6. Bg5 {[%clk 0:03:01]}  O-O {[%clk 0:02:56]} 7. e3 {[%clk 0:03:00]}  h6 {[%clk 0:02:56]} 8. Bxf6 {[%clk 0:02:59]}  Bxf6 {[%clk 0:02:57]} 9. Qg3 {[%clk 0:02:59]}  Bxc3+ {[%clk 0:02:55]} 10. bxc3 {[%clk 0:03:00]}  Qf6 {[%clk 0:02:55]} 11. Rd1 {[%clk 0:03:01]}  Qxc3+ {[%clk 0:02:55]} 12. Rd2 {[%clk 0:03:02]}  d6 {[%clk 0:02:48]} 13. Bd3 {[%clk 0:02:53]}  Ne5 {[%clk 0:02:46]} 14. e4 {[%clk 0:02:46]}  Qa1+ {[%clk 0:02:34]} 15. Rd1 {[%clk 0:02:45]}  Qxa2 {[%clk 0:02:33]} 16. Ne2 {[%clk 0:02:46]}  Qa5+ {[%clk 0:02:34]} 17. Kf1 {[%clk 0:02:31]}  Be6 {[%clk 0:02:33]} 18. Nd4 {[%clk 0:02:24]}  Bxc4 {[%clk 0:02:27]} 19. Bxc4 {[%clk 0:02:20]}  Nxc4 {[%clk 0:02:28]} 20. Nf5 {[%clk 0:02:14]}  Qe5 {[%clk 0:02:25]} 21. Nxh6+ {[%clk 0:02:04]}  Kh7 {[%clk 0:02:25]} 22. Nf5 {[%clk 0:01:01]}  g6 {[%clk 0:02:19]} 23. Qh4+ {[%clk 0:01:00]}  Kg8 {[%clk 0:02:17]} 24. Ne7+ {[%clk 0:00:36]}  Kg7 {[%clk 0:02:16]} 25. Nf5+ {[%clk 0:00:37]}  gxf5 {[%clk 0:02:03]} 26. Qg5+ {[%clk 0:00:20]}  Kh8 {[%clk 0:02:03]} 27. Qh5+ {[%clk 0:00:10]}  Kg8 {[%clk 0:02:03]} 28. Rd5 {[%clk 0:00:11]}  Qa1+ {[%clk 0:01:55]} 29. Ke2 {[%clk 0:00:11]}  Qb2+ {[%clk 0:01:56]} 30. Kf3 {[%clk 0:00:03]}  Ne5+ {[%clk 0:01:55]} 31. Kg3 {[%clk 0:00:04]}  f4+ {[%clk 0:01:48]} 32. Kh3 {[%clk 0:00:04]}  Ng6 {[%clk 0:01:46]} 33. Rg5 {[%clk 0:00:03]}  Qh8 {[%clk 0:01:45]} 34. Kg4 {[%clk 0:00:01]}  Qxh5+ {[%clk 0:01:44]} 35. Kxh5 {[%clk 0:00:02]}  Kg7 {[%clk 0:01:43]} 36. Kg4 {[%clk 0:00:02]}  a5 {[%clk 0:01:42]} 37. h4 {[%clk 0:00:03]}  f6 {[%clk 0:01:39]} 38. Rb5 {[%clk 0:00:02]}  b6 {[%clk 0:01:38]} 39. h5 {[%clk 0:00:03]}  Ne5+ {[%clk 0:01:38]} 40. Kxf4 {[%clk 0:00:04]}  a4 {[%clk 0:01:37]} 0-1


[Site "https://www.chess.com"]

[Event "Titled Tuesday Blitz June 6 Early 2023"]
[White "Fernandez Garcia, Gumersindo"]
[Black "Manukyan, Sargis A."]
[WhiteFideId "24516740"]
[BlackFideId "13303970"]
[WhiteElo "2093"]
[BlackElo "2187"]
[Result "1-0"]
[Round "6"]
[TimeControl "180+2"]
[Date "2023.06.06"]
[WhiteClock "0:00:13"]
[BlackClock "0:00:54"]
[Board "111"]

1. Nf3 {[%clk 0:03:00]}  d5 {[%clk 0:02:59]} 2. e3 {[%clk 0:03:01]}  e6 {[%clk 0:03:00]} 3. c4 {[%clk 0:03:01]}  Nf6 {[%clk 0:03:01]} 4. b3 {[%clk 0:03:02]}  Be7 {[%clk 0:03:01]} 5. Bb2 {[%clk 0:03:02]}  O-O {[%clk 0:03:02]} 6. Be2 {[%clk 0:03:03]}  dxc4 {[%clk 0:03:03]} 7. bxc4 {[%clk 0:03:03]}  b6 {[%clk 0:03:03]} 8. O-O {[%clk 0:03:02]}  Bb7 {[%clk 0:03:04]} 9. d4 {[%clk 0:03:01]}  Nbd7 {[%clk 0:03:04]} 10. Nbd2 {[%clk 0:03:01]}  c5 {[%clk 0:03:05]} 11. a4 {[%clk 0:03:00]}  cxd4 {[%clk 0:03:04]} 12. exd4 {[%clk 0:02:59]}  Kh8 {[%clk 0:03:05]} 13. a5 {[%clk 0:02:55]}  Rg8 {[%clk 0:03:04]} 14. a6 {[%clk 0:02:50]}  Bxf3 {[%clk 0:02:59]} 15. Nxf3 {[%clk 0:02:43]}  g5 {[%clk 0:02:59]} 16. d5 {[%clk 0:02:36]}  Rc8 {[%clk 0:02:58]} 17. Ne5 {[%clk 0:02:20]}  Nxe5 {[%clk 0:02:56]} 18. Bxe5 {[%clk 0:02:20]}  Bd6 {[%clk 0:02:54]} 19. Bb2 {[%clk 0:02:17]}  e5 {[%clk 0:02:55]} 20. Re1 {[%clk 0:02:08]}  Qd7 {[%clk 0:02:53]} 21. Bd3 {[%clk 0:02:03]}  Rce8 {[%clk 0:02:53]} 22. Qf3 {[%clk 0:02:01]}  Qd8 {[%clk 0:02:41]} 23. Qf5 {[%clk 0:01:56]}  Rg6 {[%clk 0:02:41]} 24. Re2 {[%clk 0:01:47]}  Kg7 {[%clk 0:02:41]} 25. Rae1 {[%clk 0:01:46]}  Qc7 {[%clk 0:02:33]} 26. g3 {[%clk 0:01:36]}  h5 {[%clk 0:02:31]} 27. Qf3 {[%clk 0:01:26]}  g4 {[%clk 0:02:24]} 28. Qf5 {[%clk 0:01:17]}  h4 {[%clk 0:02:22]} 29. Bxe5 {[%clk 0:01:14]}  Rxe5 {[%clk 0:02:16]} 30. Rxe5 {[%clk 0:01:15]}  hxg3 {[%clk 0:02:16]} 31. hxg3 {[%clk 0:01:12]}  Bc5 {[%clk 0:02:16]} 32. Qf4 {[%clk 0:01:05]}  Qd7 {[%clk 0:01:32]} 33. Bxg6 {[%clk 0:01:02]}  fxg6 {[%clk 0:01:33]} 34. Re6 {[%clk 0:01:00]}  Nh5 {[%clk 0:01:28]} 35. Qe5+ {[%clk 0:00:58]}  Kh6 {[%clk 0:01:27]} 36. Qh8+ {[%clk 0:00:49]}  Qh7 {[%clk 0:01:21]} 37. Qxh7+ {[%clk 0:00:49]}  Kxh7 {[%clk 0:01:22]} 38. d6 {[%clk 0:00:49]}  b5 {[%clk 0:01:10]} 39. d7 {[%clk 0:00:49]}  Bb6 {[%clk 0:01:10]} 40. c5 {[%clk 0:00:48]}  Bc7 {[%clk 0:01:08]} 41. Re8 {[%clk 0:00:44]}  b4 {[%clk 0:01:08]} 42. d8=Q {[%clk 0:00:44]}  Bxd8 {[%clk 0:01:08]} 43. Rxd8 {[%clk 0:00:44]}  b3 {[%clk 0:01:09]} 44. Rb8 {[%clk 0:00:44]}  b2 {[%clk 0:01:10]} 45. Rxb2 {[%clk 0:00:44]}  Nf6 {[%clk 0:01:05]} 46. Rb7+ {[%clk 0:00:41]}  Kh6 {[%clk 0:01:05]} 47. Rxa7 {[%clk 0:00:41]}  g5 {[%clk 0:01:05]} 48. Rf7 {[%clk 0:00:40]}  Kh5 {[%clk 0:01:05]} 49. a7 {[%clk 0:00:32]}  Kg6 {[%clk 0:00:52]} 50. Rxf6+ {[%clk 0:00:31]}  Kh5 {[%clk 0:00:53]} 51. Rh6+ {[%clk 0:00:30]}  Kxh6 {[%clk 0:00:53]} 52. a8=Q {[%clk 0:00:13]}  Kg6 {[%clk 0:00:53]} 53. Qg8+ {[%clk 0:00:13]}  Kh5 {[%clk 0:00:54]} 54. Qh7# {[%clk 0:00:13]} 1-0


[Site "https://www.chess.com"]

[Event "Titled Tuesday Blitz June 6 Early 2023"]
[White "Bodnaruk, Anastasia"]
[Black "Mazurkiewicz, Michal"]
[WhiteFideId "4181751"]
[BlackFideId "1124943"]
[WhiteElo "2304"]
[BlackElo "2063"]
[Result "1-0"]
[Round "6"]
[TimeControl "180+2"]
[Date "2023.06.06"]
[WhiteClock "0:02:00"]
[BlackClock "0:00:50"]
[Board "112"]

1. e4 {[%clk 0:03:00]}  d6 {[%clk 0:02:59]} 2. d4 {[%clk 0:03:00]}  Nf6 {[%clk 0:03:00]} 3. Nc3 {[%clk 0:03:01]}  c6 {[%clk 0:03:00]} 4. f4 {[%clk 0:03:00]}  Qb6 {[%clk 0:03:00]} 5. Nf3 {[%clk 0:03:00]}  Bg4 {[%clk 0:02:59]} 6. a3 {[%clk 0:02:48]}  e5 {[%clk 0:02:46]} 7. fxe5 {[%clk 0:02:39]}  dxe5 {[%clk 0:02:46]} 8. dxe5 {[%clk 0:02:38]}  Nfd7 {[%clk 0:02:47]} 9. Bf4 {[%clk 0:02:32]}  Qxb2 {[%clk 0:02:40]} 10. Na4 {[%clk 0:02:24]}  Bxf3 {[%clk 0:02:15]} 11. gxf3 {[%clk 0:02:24]}  Bb4+ {[%clk 0:01:32]} 12. Ke2 {[%clk 0:02:19]}  Qxa1 {[%clk 0:01:09]} 13. Qxa1 {[%clk 0:02:15]}  Ba5 {[%clk 0:01:08]} 14. e6 {[%clk 0:02:11]}  Nf6 {[%clk 0:01:08]} 15. Rg1 {[%clk 0:02:06]}  fxe6 {[%clk 0:00:49]} 16. Rxg7 {[%clk 0:02:05]}  Nbd7 {[%clk 0:00:50]} 17. Rxd7 {[%clk 0:02:00]} 1-0


[Site "https://www.chess.com"]

[Event "Titled Tuesday Blitz June 6 Early 2023"]
[White "Degenbaev, Aziz"]
[Black "Gatterer, Florian"]
[WhiteFideId "13802640"]
[BlackFideId "811688"]
[WhiteElo "2152"]
[BlackElo "2221"]
[Result "0-1"]
[Round "6"]
[TimeControl "180+2"]
[Date "2023.06.06"]
[WhiteClock "0:00:32"]
[BlackClock "0:00:11"]
[Board "115"]

1. e4 {[%clk 0:03:00]}  c5 {[%clk 0:02:58]} 2. Nf3 {[%clk 0:03:00]}  e6 {[%clk 0:02:59]} 3. d4 {[%clk 0:03:00]}  cxd4 {[%clk 0:03:00]} 4. Nxd4 {[%clk 0:03:00]}  Nf6 {[%clk 0:03:01]} 5. Nc3 {[%clk 0:03:00]}  Nc6 {[%clk 0:03:01]} 6. a3 {[%clk 0:02:59]}  Be7 {[%clk 0:03:01]} 7. Be3 {[%clk 0:02:53]}  O-O {[%clk 0:02:59]} 8. f4 {[%clk 0:02:51]}  e5 {[%clk 0:02:59]} 9. Nxc6 {[%clk 0:02:50]}  dxc6 {[%clk 0:02:56]} 10. f5 {[%clk 0:02:29]}  Qxd1+ {[%clk 0:02:43]} 11. Rxd1 {[%clk 0:02:28]}  g6 {[%clk 0:02:35]} 12. fxg6 {[%clk 0:02:20]}  hxg6 {[%clk 0:02:35]} 13. h3 {[%clk 0:01:59]}  Be6 {[%clk 0:02:32]} 14. Be2 {[%clk 0:01:59]}  Rfd8 {[%clk 0:02:32]} 15. O-O {[%clk 0:01:59]}  b6 {[%clk 0:02:32]} 16. Kh2 {[%clk 0:01:51]}  Kg7 {[%clk 0:02:28]} 17. Bf2 {[%clk 0:01:46]}  Rxd1 {[%clk 0:02:25]} 18. Bxd1 {[%clk 0:01:41]}  b5 {[%clk 0:02:13]} 19. Bg3 {[%clk 0:01:41]}  Nd7 {[%clk 0:02:11]} 20. Be2 {[%clk 0:01:37]}  f5 {[%clk 0:02:08]} 21. exf5 {[%clk 0:01:31]}  gxf5 {[%clk 0:02:08]} 22. Rd1 {[%clk 0:01:28]}  a5 {[%clk 0:01:58]} 23. Bf3 {[%clk 0:01:25]}  e4 {[%clk 0:01:46]} 24. Be2 {[%clk 0:01:24]}  b4 {[%clk 0:01:44]} 25. Nb1 {[%clk 0:01:18]}  Rf8 {[%clk 0:01:29]} 26. Bd6 {[%clk 0:01:14]}  Kf6 {[%clk 0:01:25]} 27. a4 {[%clk 0:01:09]}  Rg8 {[%clk 0:01:08]} 28. Bc7 {[%clk 0:01:07]}  Bd8 {[%clk 0:01:00]} 29. Bxd8+ {[%clk 0:01:04]}  Rxd8 {[%clk 0:01:00]} 30. Rd6 {[%clk 0:01:04]}  Ke5 {[%clk 0:00:29]} 31. Rxc6 {[%clk 0:01:03]}  f4 {[%clk 0:00:30]} 32. Nd2 {[%clk 0:01:00]}  Nf6 {[%clk 0:00:18]} 33. Nb3 {[%clk 0:00:57]}  Bxb3 {[%clk 0:00:16]} 34. cxb3 {[%clk 0:00:57]}  Rd2 {[%clk 0:00:16]} 35. Bc4 {[%clk 0:00:56]}  f3 {[%clk 0:00:14]} 36. Bf1 {[%clk 0:00:51]}  e3 {[%clk 0:00:12]} 37. Rc5+ {[%clk 0:00:49]}  Kd6 {[%clk 0:00:10]} 38. Rc8 {[%clk 0:00:43]}  e2 {[%clk 0:00:09]} 39. Rd8+ {[%clk 0:00:40]}  Nd7 {[%clk 0:00:09]} 40. Bxe2 {[%clk 0:00:39]}  fxe2 {[%clk 0:00:09]} 41. Re8 {[%clk 0:00:39]}  Ne5 {[%clk 0:00:08]} 42. Rd8+ {[%clk 0:00:40]}  Ke6 {[%clk 0:00:09]} 43. Rxd2 {[%clk 0:00:40]}  e1=Q {[%clk 0:00:09]} 44. Rc2 {[%clk 0:00:41]}  Qe4 {[%clk 0:00:07]} 45. Rf2 {[%clk 0:00:40]}  Qe3 {[%clk 0:00:07]} 46. Rc2 {[%clk 0:00:38]}  Qxb3 {[%clk 0:00:06]} 47. Rc8 {[%clk 0:00:37]}  Qxa4 {[%clk 0:00:06]} 48. Ra8 {[%clk 0:00:36]}  Qb5 {[%clk 0:00:05]} 49. Rh8 {[%clk 0:00:35]}  Kd5 {[%clk 0:00:05]} 50. Rd8+ {[%clk 0:00:33]}  Ke4 {[%clk 0:00:04]} 51. h4 {[%clk 0:00:33]}  a4 {[%clk 0:00:05]} 52. h5 {[%clk 0:00:33]}  Ng4+ {[%clk 0:00:04]} 53. Kg3 {[%clk 0:00:34]}  Qe5+ {[%clk 0:00:02]} 54. Kxg4 {[%clk 0:00:33]}  Qf5+ {[%clk 0:00:02]} 55. Kh4 {[%clk 0:00:32]}  Qf4+ {[%clk 0:00:02]} 56. Kh3 {[%clk 0:00:32]}  Qf5+ {[%clk 0:00:03]} 57. Kh2 {[%clk 0:00:28]}  Qxh5+ {[%clk 0:00:03]} 58. Kg1 {[%clk 0:00:29]}  Qe5 {[%clk 0:00:03]} 59. Rd2 {[%clk 0:00:27]}  a3 {[%clk 0:00:03]} 60. Re2+ {[%clk 0:00:27]}  Kd5 {[%clk 0:00:03]} 61. Rd2+ {[%clk 0:00:25]}  Ke6 {[%clk 0:00:03]} 62. bxa3 {[%clk 0:00:25]}  bxa3 {[%clk 0:00:03]} 63. Kf1 {[%clk 0:00:25]}  Qb2 {[%clk 0:00:04]} 64. Ke2 {[%clk 0:00:23]}  Qxd2+ {[%clk 0:00:04]} 65. Kxd2 {[%clk 0:00:24]}  a2 {[%clk 0:00:05]} 66. Ke3 {[%clk 0:00:25]}  a1=Q {[%clk 0:00:06]} 67. Kf4 {[%clk 0:00:25]}  Qg7 {[%clk 0:00:06]} 68. g4 {[%clk 0:00:26]}  Kf7 {[%clk 0:00:07]} 69. g5 {[%clk 0:00:26]}  Qg6 {[%clk 0:00:07]} 70. Kg4 {[%clk 0:00:27]}  Ke6 {[%clk 0:00:08]} 71. Kf4 {[%clk 0:00:28]}  Kd5 {[%clk 0:00:08]} 72. Kg4 {[%clk 0:00:28]}  Ke5 {[%clk 0:00:09]} 73. Kh4 {[%clk 0:00:29]}  Kf5 {[%clk 0:00:10]} 74. Kh3 {[%clk 0:00:29]}  Qxg5 {[%clk 0:00:10]} 75. Kh2 {[%clk 0:00:30]}  Kf4 {[%clk 0:00:11]} 76. Kh1 {[%clk 0:00:31]}  Kf3 {[%clk 0:00:11]} 77. Kh2 {[%clk 0:00:32]}  Qg2# {[%clk 0:00:11]} 0-1


[Site "https://www.chess.com"]

[Event "Titled Tuesday Blitz June 6 Early 2023"]
[White "Moore, Nicholas"]
[Black "Czerw, Dawid"]
[WhiteFideId "4303709"]
[BlackFideId "1145746"]
[WhiteElo "2403"]
[BlackElo "2144"]
[Result "0-1"]
[Round "6"]
[TimeControl "180+2"]
[Date "2023.06.06"]
[WhiteClock "0:00:48"]
[BlackClock "0:00:59"]
[Board "116"]

1. c4 {[%clk 0:03:00]}  Nf6 {[%clk 0:02:59]} 2. g3 {[%clk 0:03:00]}  g6 {[%clk 0:03:00]} 3. Bg2 {[%clk 0:02:59]}  c5 {[%clk 0:02:59]} 4. Nc3 {[%clk 0:02:54]}  Bg7 {[%clk 0:02:58]} 5. e3 {[%clk 0:02:52]}  O-O {[%clk 0:02:56]} 6. Nge2 {[%clk 0:02:50]}  Nc6 {[%clk 0:02:57]} 7. O-O {[%clk 0:02:50]}  a6 {[%clk 0:02:57]} 8. d4 {[%clk 0:02:45]}  d6 {[%clk 0:02:51]} 9. dxc5 {[%clk 0:02:27]}  dxc5 {[%clk 0:02:51]} 10. Bxc6 {[%clk 0:02:27]}  bxc6 {[%clk 0:02:51]} 11. Qxd8 {[%clk 0:02:27]}  Rxd8 {[%clk 0:02:51]} 12. e4 {[%clk 0:02:20]}  Be6 {[%clk 0:02:49]} 13. b3 {[%clk 0:02:00]}  Nxe4 {[%clk 0:02:42]} 14. Bb2 {[%clk 0:01:59]}  Rd2 {[%clk 0:02:31]} 15. Nxe4 {[%clk 0:01:40]}  Rxb2 {[%clk 0:02:20]} 16. N2c3 {[%clk 0:01:19]}  Bd4 {[%clk 0:02:07]} 17. Rac1 {[%clk 0:01:13]}  Bg4 {[%clk 0:01:52]} 18. Na4 {[%clk 0:01:09]}  Rxa2 {[%clk 0:01:40]} 19. Nexc5 {[%clk 0:01:07]}  Bh3 {[%clk 0:01:30]} 20. Rcd1 {[%clk 0:00:53]}  e5 {[%clk 0:01:20]} 21. Rxd4 {[%clk 0:00:51]}  exd4 {[%clk 0:01:17]} 22. Rd1 {[%clk 0:00:52]}  Re8 {[%clk 0:01:10]} 23. Nd7 {[%clk 0:00:48]}  Bxd7 {[%clk 0:00:59]} 0-1


[Site "https://www.chess.com"]

[Event "Titled Tuesday Blitz June 6 Early 2023"]
[White "Shapiro, Daniel"]
[Black "Gheorghiu, Calin"]
[WhiteFideId "2001780"]
[BlackFideId "1200305"]
[WhiteElo "2387"]
[BlackElo "2204"]
[Result "0-1"]
[Round "6"]
[TimeControl "180+2"]
[Date "2023.06.06"]
[WhiteClock "0:00:03"]
[BlackClock "0:00:24"]
[Board "118"]

1. d4 {[%clk 0:03:00]}  d5 {[%clk 0:02:57]} 2. c4 {[%clk 0:03:00]}  e6 {[%clk 0:02:57]} 3. Nf3 {[%clk 0:03:00]}  Nf6 {[%clk 0:02:57]} 4. g3 {[%clk 0:03:00]}  c6 {[%clk 0:02:55]} 5. Qc2 {[%clk 0:03:00]}  Nbd7 {[%clk 0:02:56]} 6. Bg2 {[%clk 0:03:00]}  Bd6 {[%clk 0:02:53]} 7. Nbd2 {[%clk 0:02:59]}  O-O {[%clk 0:02:53]} 8. O-O {[%clk 0:02:58]}  Re8 {[%clk 0:02:45]} 9. Re1 {[%clk 0:02:56]}  a5 {[%clk 0:02:41]} 10. b3 {[%clk 0:02:50]}  a4 {[%clk 0:02:30]} 11. Bb2 {[%clk 0:02:47]}  a3 {[%clk 0:02:28]} 12. Bc3 {[%clk 0:02:47]}  b6 {[%clk 0:02:28]} 13. e4 {[%clk 0:02:44]}  dxe4 {[%clk 0:02:26]} 14. Ng5 {[%clk 0:02:42]}  Bb7 {[%clk 0:02:17]} 15. Ndxe4 {[%clk 0:02:40]}  Nxe4 {[%clk 0:02:16]} 16. Nxe4 {[%clk 0:02:22]}  Be7 {[%clk 0:02:10]} 17. Rad1 {[%clk 0:02:17]}  Qc7 {[%clk 0:02:08]} 18. Bd2 {[%clk 0:02:16]}  c5 {[%clk 0:01:34]} 19. Bf4 {[%clk 0:02:11]}  Qc8 {[%clk 0:01:34]} 20. dxc5 {[%clk 0:01:58]}  Nxc5 {[%clk 0:01:31]} 21. Nd6 {[%clk 0:01:49]}  Bxd6 {[%clk 0:01:29]} 22. Rxd6 {[%clk 0:01:38]}  Bxg2 {[%clk 0:01:27]} 23. Kxg2 {[%clk 0:01:36]}  Qb7+ {[%clk 0:01:26]} 24. f3 {[%clk 0:01:30]}  Rad8 {[%clk 0:01:26]} 25. Red1 {[%clk 0:01:23]}  Rxd6 {[%clk 0:01:23]} 26. Rxd6 {[%clk 0:01:18]}  h6 {[%clk 0:01:19]} 27. Qd2 {[%clk 0:01:09]}  e5 {[%clk 0:01:18]} 28. Be3 {[%clk 0:01:02]}  e4 {[%clk 0:01:16]} 29. f4 {[%clk 0:01:03]}  Nd3 {[%clk 0:01:10]} 30. Rxb6 {[%clk 0:01:00]}  Qd7 {[%clk 0:01:00]} 31. c5 {[%clk 0:00:55]}  Qg4 {[%clk 0:00:58]} 32. c6 {[%clk 0:00:47]}  Qf3+ {[%clk 0:00:53]} 33. Kg1 {[%clk 0:00:47]}  Rc8 {[%clk 0:00:43]} 34. b4 {[%clk 0:00:46]}  h5 {[%clk 0:00:41]} 35. b5 {[%clk 0:00:45]}  h4 {[%clk 0:00:41]} 36. gxh4 {[%clk 0:00:32]}  Qg4+ {[%clk 0:00:41]} 37. Kh1 {[%clk 0:00:27]}  Rd8 {[%clk 0:00:27]} 38. c7 {[%clk 0:00:22]}  Nf2+ {[%clk 0:00:27]} 39. Bxf2 {[%clk 0:00:14]}  Rxd2 {[%clk 0:00:24]} 40. Rb8+ {[%clk 0:00:03]}  Kh7 {[%clk 0:00:24]} 0-1


[Site "https://www.chess.com"]

[Event "Titled Tuesday Blitz June 6 Early 2023"]
[White "Krutko, Anatoly"]
[Black "Fajdetic, Hrvoje"]
[WhiteFideId "4185862"]
[BlackFideId "14501945"]
[WhiteElo "2378"]
[BlackElo "2185"]
[Result "1-0"]
[Round "6"]
[TimeControl "180+2"]
[Date "2023.06.06"]
[WhiteClock "0:00:30"]
[BlackClock "0:00:05"]
[Board "120"]

1. e4 {[%clk 0:02:53]}  e6 {[%clk 0:02:59]} 2. d3 {[%clk 0:02:51]}  c5 {[%clk 0:02:58]} 3. Nf3 {[%clk 0:02:49]}  Nc6 {[%clk 0:02:57]} 4. g3 {[%clk 0:02:49]}  g6 {[%clk 0:02:56]} 5. Bg2 {[%clk 0:02:50]}  Bg7 {[%clk 0:02:56]} 6. O-O {[%clk 0:02:50]}  Nge7 {[%clk 0:02:56]} 7. c3 {[%clk 0:02:51]}  e5 {[%clk 0:02:55]} 8. Na3 {[%clk 0:02:50]}  d6 {[%clk 0:02:53]} 9. Nc4 {[%clk 0:02:50]}  b5 {[%clk 0:02:52]} 10. Ne3 {[%clk 0:02:49]}  O-O {[%clk 0:02:44]} 11. a4 {[%clk 0:02:49]}  b4 {[%clk 0:02:44]} 12. Nd2 {[%clk 0:02:44]}  bxc3 {[%clk 0:02:39]} 13. bxc3 {[%clk 0:02:44]}  Ba6 {[%clk 0:02:36]} 14. Ndc4 {[%clk 0:02:44]}  Rb8 {[%clk 0:02:34]} 15. Ba3 {[%clk 0:02:35]}  Na5 {[%clk 0:02:32]} 16. Re1 {[%clk 0:02:23]}  Nxc4 {[%clk 0:02:27]} 17. dxc4 {[%clk 0:02:23]}  Bh6 {[%clk 0:02:05]} 18. Ng4 {[%clk 0:02:11]}  Bg7 {[%clk 0:01:59]} 19. Bf1 {[%clk 0:02:11]}  f5 {[%clk 0:01:55]} 20. exf5 {[%clk 0:02:04]}  Nxf5 {[%clk 0:01:48]} 21. Qd3 {[%clk 0:01:57]}  Bb7 {[%clk 0:01:15]} 22. Bg2 {[%clk 0:01:45]}  Bxg2 {[%clk 0:01:14]} 23. Kxg2 {[%clk 0:01:46]}  Qd7 {[%clk 0:01:01]} 24. Ne3 {[%clk 0:01:25]}  Nxe3+ {[%clk 0:00:36]} 25. Rxe3 {[%clk 0:01:26]}  Rf6 {[%clk 0:00:21]} 26. Qd5+ {[%clk 0:01:15]}  Qe6 {[%clk 0:00:15]} 27. Rd1 {[%clk 0:01:13]}  Rbf8 {[%clk 0:00:14]} 28. Qxe6+ {[%clk 0:01:09]}  Rxe6 {[%clk 0:00:13]} 29. Red3 {[%clk 0:01:10]}  Rff6 {[%clk 0:00:11]} 30. Rb1 {[%clk 0:01:03]}  Bf8 {[%clk 0:00:10]} 31. Rb8 {[%clk 0:01:00]}  Rf7 {[%clk 0:00:09]} 32. a5 {[%clk 0:00:57]}  Ref6 {[%clk 0:00:09]} 33. Rd2 {[%clk 0:00:57]}  g5 {[%clk 0:00:06]} 34. a6 {[%clk 0:00:50]}  d5 {[%clk 0:00:06]} 35. cxd5 {[%clk 0:00:46]}  Rxa6 {[%clk 0:00:06]} 36. Bxc5 {[%clk 0:00:46]}  Kg7 {[%clk 0:00:06]} 37. Be3 {[%clk 0:00:37]}  g4 {[%clk 0:00:06]} 38. c4 {[%clk 0:00:37]}  Ra4 {[%clk 0:00:04]} 39. c5 {[%clk 0:00:36]}  Rc4 {[%clk 0:00:03]} 40. d6 {[%clk 0:00:37]}  e4 {[%clk 0:00:03]} 41. d7 {[%clk 0:00:35]}  Be7 {[%clk 0:00:04]} 42. Re8 {[%clk 0:00:33]}  Bf6 {[%clk 0:00:04]} 43. d8=Q {[%clk 0:00:32]}  Bxd8 {[%clk 0:00:04]} 44. Rdxd8 {[%clk 0:00:32]}  a5 {[%clk 0:00:04]} 45. Rg8+ {[%clk 0:00:32]}  Kf6 {[%clk 0:00:05]} 46. Rd6+ {[%clk 0:00:33]}  Ke7 {[%clk 0:00:05]} 47. Rxg4 {[%clk 0:00:32]}  Rc2 {[%clk 0:00:05]} 48. Rxe4+ {[%clk 0:00:31]}  Kf8 {[%clk 0:00:05]} 49. Bh6+ {[%clk 0:00:30]}  Kg8 {[%clk 0:00:05]} 50. Rd8+ {[%clk 0:00:30]} 1-0


[Site "https://www.chess.com"]